bitfinex-derivatives/quotes_SOLF0:USTF0_20241024
["timestamp","ask_amount","ask_price","bid_price","bid_amount"]
[1729734998211,7.119449,172.84,172.82,2.8955]
[1729734998418,2.895,172.86,172.82,2.8955]
[1729735002825,16.06399596,172.87,172.79,1.4480509]
[1729735003129,18.95879596,172.87,172.83,2.8954]
[1729735009932,2.895,172.86,172.82,2.8956]
[1729735010838,16.06399596,172.87,172.83,2.8954]
[1729735011034,18.95879596,172.87,172.83,2.8954]
[1729735012032,16.06399596,172.87,172.78,1.2233]
[1729735012231,16.06399596,172.87,172.79,1.44804086]
[1729735012441,16.06399596,172.87,172.78,1.2233]
[1729735012636,2.8951,172.86,172.79,1.44816015]
[1729735012833,11.12399596,172.84,172.76,1.2078]
[1729735013151,2.93527045,172.88,172.79,2.8961]
[1729735013152,11.12399596,172.82,172.79,2.8961]
[1729735013436,4.92,172.81,172.79,2.8961]
[1729735013641,4.92,172.81,172.77,1.44829163]
[1729735013845,4.92,172.81,172.76,1.2078]
[1729735014037,4.92,172.81,172.77,1.44829524]
[1729735014236,4.92,172.81,172.76,1.2078]
[1729735014540,4.92,172.81,172.77,1.44828704]
[1729735014741,4.92,172.81,172.77,2.8963]
[1729735014942,4.92,172.81,172.76,1.2078]
[1729735015140,4.92,172.81,172.77,1.44829846]
[1729735015341,4.92,172.81,172.78,2.8961]
[1729735017246,4.92,172.81,172.79,2.8961]
[1729735019044,4.92,172.81,172.78,1.44829407]
[1729735019045,11.12399596,172.8,172.78,1.44829407]
[1729735019244,11.12399596,172.8,172.75,1.44846107]
[1729735019544,11.12399596,172.8,172.76,1.44846107]
[1729735019743,11.12399596,172.8,172.74,1.2117]
[1729735019944,11.12399596,172.8,172.75,1.44847648]
[1729735020144,11.12399596,172.8,172.74,2.8969]
[1729735020341,7.12611888,172.75,172.72,1.1745]
[1729735020545,7.12611888,172.75,172.73,1.44855596]
[1729735020742,7.12611888,172.75,172.74,1.44855596]
[1729735020943,7.12611888,172.75,172.72,1.1745]
[1729735021143,7.12611888,172.75,172.73,1.44873012]
[1729735021338,7.12611888,172.75,172.74,2.8969]
[1729735022944,7.12611888,172.75,172.7,9.61531888]
[1729735023156,7.12611888,172.73,172.71,4.34616341]
[1729735023444,12.04611888,172.73,172.72,1.44876341]
[1729735023954,12.04611888,172.73,172.68,153.76028747]
[1729735023955,14.94321888,172.73,172.69,4.34676201]
[1729735024146,7.12611888,172.7,172.69,2.8977]
[1729735024340,7.12611888,172.7,172.67,2.898]
[1729735024641,12.04611888,172.69,172.67,2.898]
[1729735027049,5.79,172.86,172.68,7.12611888]
[1729735027355,7.12611888,172.75,172.7,7.12611888]
[1729735027537,4.92,172.74,172.72,2.8972]
[1729735029443,7.12611888,172.75,172.7,7.12611888]
[1729735029649,4.92,172.74,172.7,7.12611888]
[1729735030050,4.92,172.74,172.72,2.8972]
[1729735030450,4.92,172.74,172.7,7.12611888]
[1729735031754,12.04611888,172.74,172.72,2.8971]
[1729735033656,7.12611888,172.73,172.72,2.8971]
[1729735033952,7.12611888,172.73,172.67,1.216]
[1729735034155,4.92,172.74,172.62,1.44895114]
[1729735034156,7.12611888,172.69,172.62,1.44895114]
[1729735034347,62.56,172.76,172.61,2.5418]
[1729735034348,7.12611888,172.65,172.61,2.5418]
[1729735034547,7.12611888,172.66,172.61,2.5418]
[1729735034853,7.12611888,172.66,172.62,1.2135]
[1729735035345,7.12611888,172.66,172.65,2.8983]
[1729735035851,7.12611888,172.66,172.61,2.5418]
[1729735036059,4.92,172.68,172.63,2.8987]
[1729735036855,2.8981,172.67,172.63,2.8987]
[1729735037250,7.12611888,172.64,172.63,2.8987]
[1729735037458,12.04611888,172.64,172.63,2.8987]
[1729735038055,12.04611888,172.64,172.61,2.5418]
[1729735038360,4.92,172.64,172.62,2.8989]
[1729735039053,4.92,172.64,172.61,2.5418]
[1729735039258,4.92,172.64,172.61,4.1629]
[1729735039761,4.92,172.64,172.61,1.2638]
[1729735040060,11.13769736,172.63,172.6,2.8991]
[1729735041050,11.13769736,172.63,172.61,2.8991]
[1729735042858,11.13769736,172.63,172.58,2.8995]
[1729735043062,11.13769736,172.63,172.57,2.3786]
[1729735044460,14.03649736,172.63,172.57,2.3786]
[1729735045360,14.03649736,172.63,172.59,2.8993]
[1729735047852,11.13769736,172.63,172.6,2.8991]
[1729735048056,4.92,172.64,172.57,2.3786]
[1729735048557,4.92,172.64,172.61,2.899]
[1729735048756,4.92,172.64,172.57,13.51629736]
[1729735049256,4.92,172.64,172.62,2.8988]
[1729735049570,4.92,172.64,172.57,13.51629736]
[1729735049865,4.92,172.64,172.63,2.8988]
[1729735051065,62.56,172.76,172.64,2.8986]
[1729735051273,11.13769736,172.71,172.59,11.13769736]
[1729735051567,14.03529736,172.71,172.66,2.8982]
[1729735051771,4.92,172.7,172.61,11.13769736]
[1729735052072,11.13769736,172.71,172.68,2.8978]
[1729735052368,11.13769736,172.73,172.63,11.13769736]
[1729735052567,4.92,172.72,172.64,3.6929]
[1729735052971,11.13769736,172.75,172.65,11.13769736]
[1729735053168,4.92,172.74,172.65,11.13769736]
[1729735053765,7.817,172.74,172.65,11.13769736]
[1729735055369,7.817,172.74,172.7,2.8976]
[1729735057470,4.92,172.74,172.7,2.8976]
[1729735057767,4.92,172.74,172.65,11.13769736]
[1729735058465,12.04703236,172.74,172.73,2.8971]
[1729735058672,4.92,172.74,172.73,2.8971]
[1729735058970,7.12703236,172.75,172.73,2.8971]
[1729735059169,4.92,172.74,172.73,2.8971]
[1729735059670,4.92,172.74,172.7,7.12703236]
[1729735059671,1.0744,172.81,172.7,7.12703236]
[1729735059969,1.0744,172.81,172.64,3.6929]
[1729735059970,7.12703236,172.74,172.71,2.4376]
[1729735060164,12.04703236,172.74,172.71,2.4376]
[1729735060967,12.04703236,172.74,172.72,2.8971]
[1729735064168,12.04703236,172.74,172.71,8.32953236]
[1729735064169,4.92,172.74,172.71,8.32953236]
[1729735064370,62.7624,172.85,172.71,8.32953236]
[1729735064371,62.7624,172.85,172.73,7.12703236]
[1729735064565,7.12703236,172.8,172.77,2.8963]
[1729735064767,4.92,172.79,172.77,2.8963]
[1729735065878,7.12703236,172.8,172.77,2.8963]
[1729735066067,4.92,172.78,172.77,2.8963]
[1729735071185,4.9,172.79,172.77,2.8963]
[1729735071474,4.9,172.79,172.75,2.8967]
[1729735071772,7.12703236,172.82,172.77,7.12703236]
[1729735071979,4.9,172.81,172.77,7.12703236]
[1729735073370,4.9,172.81,172.79,2.8959]
[1729735078583,12.02703236,172.81,172.79,2.8959]
[1729735080585,12.02703236,172.81,172.78,2.8962]
[1729735081784,12.02703236,172.81,172.79,2.8961]
[1729735082372,62.58,172.85,172.82,2.8956]
[1729735082577,62.58,172.85,172.81,7.12703236]
[1729735082578,4.9,172.84,172.81,7.12703236]
[1729735082778,7.12703236,172.83,172.78,7.12703236]
[1729735083078,7.12703236,172.83,172.81,2.8957]
[1729735087786,12.02703236,172.84,172.81,2.8957]
[1729735087981,4.9,172.84,172.81,2.8957]
[1729735088186,4.9,172.84,172.8,7.12703236]
[1729735088484,4.9,172.84,172.81,2.8957]
[1729735090288,4.9,172.84,172.83,2.8954]
[1729735091878,4.9,172.84,172.76,1.44816347]
[1729735092078,12.02703236,172.84,172.75,1.44816347]
[1729735092275,12.02703236,172.84,172.79,7.12703236]
[1729735093076,7.12703236,172.81,172.75,1.44816347]
[1729735093291,7.12703236,172.81,172.78,2.8962]
[1729735093584,4.9,172.8,172.78,2.8962]
[1729735094186,4.9,172.8,172.74,7.12703236]
[1729735094187,7.12703236,172.79,172.74,7.12703236]
[1729735094490,7.12703236,172.78,172.72,9.53253236]
[1729735094684,4.9,172.8,172.72,9.53253236]
[1729735094685,7.12703236,172.77,172.72,9.53253236]
[1729735094889,7.12703236,172.77,172.75,2.8968]
[1729735095389,4.9,172.76,172.72,1.1877]
[1729735095587,7.12703236,172.74,172.72,1.1877]
[1729735095886,7.12703236,172.74,172.72,2.8972]
[1729735098782,12.02703236,172.76,172.72,2.8972]
[1729735100695,12.02703236,172.76,172.73,2.8971]
[1729735101883,1.25,172.82,172.72,7.12703236]
[1729735102086,7.12703236,172.8,172.75,7.12703236]
[1729735102287,4.88,172.79,172.75,7.12703236]
[1729735102484,4.88,172.79,172.77,2.8964]
[1729735102686,4.88,172.79,172.77,7.12703236]
[1729735103091,4.88,172.79,172.78,2.8963]
[1729735103286,4.88,172.79,172.78,7.12703236]
[1729735103494,7.12703236,172.84,172.78,7.12703236]
[1729735103788,4.88,172.83,172.8,2.8958]
[1729735103989,4.88,172.82,172.8,2.8958]
[1729735105303,4.88,172.82,172.81,10.02283236]
[1729735107498,62.54,172.92,172.81,7.12703236]
[1729735107703,7.12703236,172.89,172.84,7.12703236]
[1729735108500,7.12703236,172.89,172.85,2.8949]
[1729735109596,7.12703236,172.86,172.83,2.8954]
[1729735109891,12.00703236,172.86,172.83,2.8954]
[1729735110296,14.90193236,172.86,172.82,5.3325]
[1729735110499,14.90193236,172.86,172.82,4.1404]
[1729735110700,7.12703236,172.85,172.79,7.12703236]
[1729735110892,7.12703236,172.83,172.79,7.12703236]
[1729735111499,7.12703236,172.85,172.81,2.8957]
[1729735113397,7.12703236,172.85,172.79,7.12703236]
[1729735113599,7.12703236,172.85,172.82,2.8956]
[1729735117402,7.775,172.86,172.82,2.8956]
[1729735117605,7.12703236,172.84,172.82,2.8956]
[1729735118312,7.12703236,172.83,172.8,2.8959]
[1729735118505,4.88,172.82,172.8,2.8959]
[1729735124711,4.88,172.82,172.8,2.8958]
[1729735126817,10.02233236,172.84,172.8,2.8958]
[1729735127022,4.88,172.83,172.8,2.8958]
[1729735140123,4.88,172.83,172.8,7.12703236]
[1729735140423,1.2504,172.91,172.82,7.12703236]
[1729735140424,4.88,172.86,172.82,7.12703236]
[1729735140623,4.88,172.86,172.83,8.57534429]
[1729735140823,7.12703236,172.88,172.83,7.12703236]
[1729735141125,4.88,172.87,172.83,7.12703236]
[1729735141325,4.88,172.87,172.84,4.34326644]
[1729735141520,4.88,172.87,172.84,2.8951]
[1729735144225,4.88,172.87,172.83,7.12703236]
[1729735144420,4.88,172.87,172.84,2.8952]
[1729735147426,4.88,172.87,172.77,2.5052]
[1729735147427,7.12703236,172.85,172.77,2.5052]
[1729735147624,4.88,172.87,172.78,8.57549312]
[1729735147821,2.8949,172.86,172.8,10.02283236]
[1729735148119,12.00703236,172.86,172.81,8.57549312]
[1729735148322,12.00703236,172.86,172.83,2.8954]
[1729735152830,4.88,172.86,172.81,7.12703236]
[1729735153031,4.88,172.86,172.78,1.2619]
[1729735153032,4.88,172.86,172.85,2.8951]
[1729735153624,4.88,172.88,172.86,2.8948]
[1729735155229,7.12703236,172.89,172.84,7.12703236]
[1729735155230,12.00703236,172.89,172.87,2.8948]
[1729735156526,12.00703236,172.89,172.86,2.8949]
[1729735161535,4.86,172.88,172.86,2.8949]
[1729735162527,62.54,172.92,172.78,1.2619]
[1729735162836,4.86,172.91,172.87,7.12703236]
[1729735163031,62.54,172.92,172.87,7.12703236]
[1729735163227,4.86,172.91,172.88,2.8946]
[1729735163734,7.12703236,172.94,172.89,10.02133236]
[1729735164042,4.86,172.93,172.89,10.02133236]
[1729735164232,4.86,172.93,172.89,7.12703236]
[1729735164545,4.86,172.93,172.9,7.12703236]
[1729735164733,7.12703236,172.96,172.9,7.12703236]
[1729735164927,7.12703236,172.96,172.91,2.8939]
[1729735164928,4.86,172.95,172.91,2.8939]
[1729735165533,7.7534,172.95,172.91,2.8939]
[1729735166142,7.12703236,172.94,172.91,2.8939]
[1729735167741,7.12703236,172.94,172.84,1.2617]
[1729735167742,7.12703236,172.92,172.84,1.2617]
[1729735168041,7.12703236,172.89,172.84,1.2617]
[1729735168236,7.12703236,172.89,172.86,2.8948]
[1729735168237,11.98703236,172.89,172.86,2.8948]
[1729735168432,4.86,172.89,172.85,8.57488104]
[1729735168634,4.86,172.89,172.86,1.44784952]
[1729735168841,4.86,172.89,172.85,7.12703236]
[1729735169041,4.86,172.89,172.86,1.44786609]
[1729735169339,4.86,172.89,172.87,2.8947]
[1729735169742,4.86,172.89,172.85,7.12703236]
[1729735170044,4.86,172.89,172.88,10.02163236]
[1729735170342,4.86,172.92,172.88,8.57489815]
[1729735170541,4.86,172.92,172.88,7.12703236]
[1729735171145,4.86,172.92,172.89,1.44766606]
[1729735171336,4.86,172.92,172.89,2.8943]
[1729735172844,4.86,172.92,172.9,2.8942]
[1729735173543,4.86,172.92,172.91,2.8941]
[1729735176045,4.86,172.94,172.91,2.8941]
[1729735176742,7.12703236,172.95,172.89,7.12703236]
[1729735176944,4.86,172.95,172.93,2.8937]
[1729735177544,11.98703236,172.96,172.93,2.8937]
[1729735178049,11.98703236,172.96,172.91,7.12703236]
[1729735178050,4.86,172.96,172.91,7.12703236]
[1729735178241,4.86,172.96,172.94,2.8935]
[1729735180739,11.98703236,172.96,172.88,1.4474356]
[1729735180944,7.12703236,172.93,172.89,1.4474356]
[1729735181144,7.12703236,172.93,172.88,7.12703236]
[1729735181344,7.12703236,172.93,172.89,1.44760528]
[1729735181544,7.12703236,172.93,172.88,7.12703236]
[1729735182251,7.12703236,172.93,172.92,2.8939]
[1729735182453,7.7534,172.96,172.92,2.8939]
[1729735182454,7.12703236,172.95,172.92,2.8939]
[1729735183155,7.7534,172.96,172.92,2.8939]
[1729735183554,7.12703236,172.95,172.92,2.8939]
[1729735185854,7.12703236,172.94,172.92,2.8939]
[1729735188448,7.12703236,172.93,172.87,1.44757528]
[1729735188642,7.12703236,172.93,172.89,2.8944]
[1729735188643,4.86,172.92,172.89,2.8944]
[1729735190161,4.86,172.92,172.9,2.8941]
[1729735196257,4.86,172.92,172.91,2.8941]
[1729735196456,4.84,172.96,172.91,7.12703236]
[1729735196757,4.84,172.98,172.94,7.12703236]
[1729735196955,4.84,172.98,172.95,2.8934]
[1729735197261,4.84,172.98,172.94,7.12703236]
[1729735197461,4.84,172.98,172.95,2.8934]
[1729735198758,10.01963236,173.0,172.95,2.8934]
[1729735198968,4.84,172.99,172.95,2.8934]
[1729735200660,4.84,172.99,172.96,2.8931]
[1729735200860,4.84,172.99,172.97,7.12703236]
[1729735201763,11.96703236,172.99,172.96,2.8932]
[1729735202763,4.84,172.99,172.97,2.893]
[1729735203457,4.84,172.99,172.97,2.8931]
[1729735204061,4.84,172.99,172.96,7.12703236]
[1729735204263,4.84,172.99,172.98,2.8929]
[1729735204858,4.84,173.0,172.98,2.8929]
[1729735205064,4.84,173.0,172.96,7.12703236]
[1729735205265,69.64703236,173.01,172.97,2.893]
[1729735205468,4.84,173.0,172.96,7.12703236]
[1729735205666,4.84,173.0,172.97,2.893]
[1729735206270,7.12703236,172.98,172.94,1.44697502]
[1729735206459,7.12703236,172.98,172.92,7.12703236]
[1729735206659,7.12703236,172.98,172.93,1.44711049]
[1729735206866,7.12703236,172.98,172.92,7.12703236]
[1729735207169,10.01993236,172.98,172.94,2.8935]
[1729735207370,4.84,173.0,172.93,7.12703236]
[1729735207568,11.96703236,173.0,172.94,7.12703236]
[1729735208364,11.96703236,173.0,172.93,5.21367592]
[1729735208566,7.12703236,172.98,172.93,7.12703236]
[1729735209069,10.02003236,172.98,172.94,2.8936]
[1729735209370,4.84,173.0,172.91,6.66119824]
[1729735209371,7.12703236,172.96,172.91,6.66119824]
[1729735209579,7.12703236,172.94,172.92,2.8939]
[1729735211673,7.12703236,172.94,172.91,2.8941]
[1729735211674,10.02063236,172.94,172.91,2.8941]
[1729735212260,10.02063236,172.94,172.89,1.2012]
[1729735212459,10.02063236,172.94,172.9,4.3415469]
[1729735212663,10.02063236,172.94,172.9,2.8942]
[1729735212865,10.02063236,172.94,172.91,2.8941]
[1729735215374,7.12703236,172.94,172.91,2.8941]
[1729735218977,10.02103236,172.92,172.89,2.8944]
[1729735219177,7.12703236,172.91,172.89,2.8944]
[1729735219975,7.12703236,172.9,172.84,8.34743236]
[1729735220178,7.12703236,172.9,172.85,1.44758088]
[1729735220381,7.12703236,172.9,172.86,1.44758088]
[1729735220681,7.12703236,172.9,172.87,1.44758088]
[1729735220885,7.12703236,172.9,172.88,1.44758088]
[1729735221181,7.12703236,172.9,172.84,1.2204]
[1729735221392,7.12703236,172.9,172.85,1.44762847]
[1729735221686,7.12703236,172.9,172.86,1.44762847]
[1729735221890,7.12703236,172.88,172.87,1.44762847]
[1729735226490,7.12703236,172.88,172.86,2.8949]
[1729735226786,7.12703236,172.88,172.87,1.44762665]
[1729735227584,10.02163236,172.88,172.87,1.44762665]
[1729735227783,10.02163236,172.88,172.8,8.40833236]
[1729735227784,7.12703236,172.88,172.8,8.40833236]
[1729735227990,2.2469,172.98,172.81,1.44786513]
[1729735227991,7.12703236,172.85,172.81,1.44786513]
[1729735228186,7.12703236,172.83,172.82,1.44786513]
[1729735228695,4.84,172.84,172.82,1.44786513]
[1729735228990,4.84,172.84,172.83,1.44786513]
[1729735229190,4.84,172.84,172.83,4.34326513]
[1729735230880,8.0328,172.98,172.83,4.34326513]
[1729735230881,4.84,172.87,172.85,2.895]
[1729735231389,7.12703236,172.89,172.88,2.8946]
[1729735231587,4.84,172.89,172.88,2.8946]
[1729735231886,4.84,172.89,172.87,2.8947]
[1729735232278,7.12703236,172.9,172.87,2.8947]
[1729735232483,2.2469,172.98,172.88,7.12703236]
[1729735232685,7.12703236,172.94,172.88,7.12703236]
[1729735232880,4.84,172.93,172.89,8.57469824]
[1729735233086,4.84,172.93,172.91,7.12703236]
[1729735233286,1.0736,173.04,172.92,7.12703236]
[1729735233482,7.12703236,172.98,172.92,7.12703236]
[1729735233686,7.12703236,172.98,172.94,2.8935]
[1729735234495,4.84,172.97,172.92,7.12703236]
[1729735234690,2.2973,173.04,172.95,7.12703236]
[1729735234890,4.84,172.98,172.96,7.12703236]
[1729735235092,4.84,172.98,172.97,2.8931]
[1729735235288,62.52,173.01,172.96,7.12703236]
[1729735235595,4.84,173.0,172.96,7.12703236]
[1729735235797,4.84,173.0,172.97,2.893]
[1729735236290,4.84,173.0,172.98,10.01983236]
[1729735237487,4.84,173.02,173.0,2.8925]
[1729735238493,4.84,173.04,173.0,10.01953236]
[1729735238688,4.84,173.04,173.01,7.12703236]
[1729735238886,4.84,173.04,173.02,2.8922]
[1729735239185,4.84,173.09,173.03,7.12703236]
[1729735239392,2.3059,173.18,173.06,7.12703236]
[1729735239695,7.12703236,173.14,173.08,7.12703236]
[1729735239884,7.12703236,173.12,173.07,10.01843236]
[1729735240083,7.7304,173.13,173.04,1.1869]
[1729735240084,7.12703236,173.1,173.04,1.1869]
[1729735240285,15.9471009,173.09,173.02,2.4263]
[1729735240497,4.84,173.08,173.03,2.8919]
[1729735244296,4.84,173.08,173.02,2.4263]
[1729735246801,4.84,173.08,173.04,2.8918]
[1729735248002,4.84,173.08,173.03,2.8919]
[1729735248201,4.84,173.08,173.02,13.5334009]
[1729735248597,4.84,173.08,173.05,2.8916]
[1729735251298,4.84,173.08,173.02,13.5334009]
[1729735251704,2.8915,173.07,173.0,1.2905]
[1729735253011,11.1071009,173.06,173.0,1.2905]
[1729735253203,2.8919,173.04,173.0,2.8925]
[1729735253399,4.82,173.03,172.95,11.1071009]
[1729735253607,4.82,173.03,172.99,2.8927]
[1729735253804,4.82,173.03,172.94,1.44652878]
[1729735253805,2.8923,173.02,172.94,1.44652878]
[1729735254312,4.82,173.03,172.98,2.8928]
[1729735254505,7.7121,173.03,172.94,1.44652878]
[1729735254708,4.82,173.03,172.94,1.44652878]
[1729735255224,7.7121,173.03,172.98,2.8928]
[1729735259326,7.7121,173.03,172.93,17.2072009]
[1729735259526,7.7121,173.03,172.99,2.8927]
[1729735259921,2.2864,173.08,172.96,11.1071009]
[1729735260225,7.7114,173.07,173.03,2.8919]
[1729735261629,7.7114,173.07,173.02,2.8922]
[1729735262329,11.1071009,173.04,172.95,11.1071009]
[1729735262532,4.82,173.03,172.95,11.1071009]
[1729735262926,7.7121,173.03,172.98,2.8928]
[1729735263121,7.7121,173.03,172.95,11.1071009]
[1729735263325,4.82,173.03,172.95,11.1071009]
[1729735263836,4.82,173.03,172.97,11.1071009]
[1729735264333,4.82,173.03,173.02,2.8922]
[1729735265531,4.82,173.03,173.0,2.5624]
[1729735265532,11.1071009,173.08,173.03,2.8919]
[1729735265734,4.82,173.07,173.03,2.8919]
[1729735266028,4.82,173.07,173.0,2.5624]
[1729735266232,4.82,173.06,173.03,2.8919]
[1729735269437,4.82,173.06,173.0,2.5624]
[1729735269637,15.9271009,173.06,172.95,11.1071009]
[1729735270030,4.82,173.06,172.97,11.1071009]
[1729735270638,4.82,173.06,172.95,11.1071009]
[1729735271635,2.8919,173.04,173.0,2.8925]
[1729735276849,2.8919,173.04,172.95,11.1071009]
[1729735278253,2.8919,173.04,173.0,2.8925]
[1729735280348,7.11196382,173.02,173.0,2.8925]
[1729735280864,7.11196382,173.02,172.94,1.44680401]
[1729735281157,7.11196382,172.99,172.94,7.11196382]
[1729735281859,7.11196382,172.99,172.97,2.893]
[1729735282751,4.82,173.0,172.95,2.8934]
[1729735282752,10.00496382,172.98,172.95,2.8934]
[1729735282961,10.00496382,172.98,172.93,9.51496382]
[1729735282962,7.11196382,172.98,172.93,9.51496382]
[1729735283262,7.11196382,172.97,172.93,2.403]
[1729735283452,10.00506382,172.97,172.94,2.8936]
[1729735283852,10.00506382,172.97,172.93,1.2008]
[1729735284047,10.00506382,172.97,172.93,4.0944]
[1729735284248,2.8931,172.97,172.93,4.0944]
[1729735284650,11.12049482,172.98,172.92,1.2691]
[1729735284862,14.01389482,172.96,172.88,2.64460844]
[1729735285161,18.83389482,172.96,172.88,2.464]
[1729735286347,18.83389482,172.96,172.93,2.8937]
[1729735287947,15.94049482,172.96,172.88,2.464]
[1729735288153,2.8937,172.94,172.9,2.8941]
[1729735289258,15.94049482,172.96,172.88,2.464]
[1729735289560,15.94049482,172.96,172.89,2.8944]
[1729735289561,2.8938,172.93,172.89,2.8944]
[1729735289756,4.82,172.92,172.87,1.2443]
[1729735290062,4.82,172.92,172.84,154.89455515]
[1729735290063,15.94049482,172.92,172.84,154.89455515]
[1729735291057,15.94049482,172.92,172.88,2.8945]
[1729735291757,15.94049482,172.92,172.89,2.8944]
[1729735292566,18.83449482,172.92,172.87,2.8946]
[1729735293453,18.83449482,172.92,172.84,1.2935]
[1729735293657,18.83449482,172.92,172.88,2.8946]
[1729735294865,15.94049482,172.92,172.84,1.2935]
[1729735295053,2.8941,172.91,172.87,2.8947]
[1729735297261,2.8941,172.91,172.84,1.2935]
[1729735297262,18.83459482,172.92,172.86,2.8949]
[1729735297466,18.83459482,172.92,172.84,1.2935]
[1729735297467,18.83459482,172.92,172.84,2.74106382]
[1729735297671,15.94049482,172.92,172.84,1.2935]
[1729735297860,11.12049482,172.89,172.84,1.2935]
[1729735298060,11.12049482,172.87,172.82,1.256]
[1729735298260,15.94049482,172.87,172.82,1.256]
[1729735298867,15.94049482,172.87,172.84,2.8951]
[1729735299064,15.94049482,172.87,172.82,1.256]
[1729735299666,15.94049482,172.87,172.82,2.70356382]
[1729735299870,15.94049482,172.87,172.85,2.8951]
[1729735300064,15.94049482,172.87,172.82,1.256]
[1729735300065,4.82,172.87,172.82,1.256]
[1729735300266,4.82,172.89,172.83,1.44781085]
[1729735300476,4.82,172.89,172.88,2.8946]
[1729735308368,11.93227855,172.89,172.87,2.8947]
[1729735308773,7.11227855,172.88,172.83,1.44764688]
[1729735309069,2.85603335,172.97,172.79,7.11227855]
[1729735309271,2.2676,172.99,172.78,2.66114688]
[1729735309272,4.82,172.96,172.9,7.11227855]
[1729735309468,7.11227855,172.95,172.92,2.8938]
[1729735309673,7.11227855,172.94,172.89,7.11227855]
[1729735309871,7.11227855,172.92,172.86,7.11227855]
[1729735310272,4.82,172.91,172.89,2.8943]
[1729735310576,7.11227855,172.9,172.84,1.2496]
[1729735310771,7.11227855,172.87,172.86,2.8948]
[1729735310975,7.11227855,172.87,172.84,1.2496]
[1729735311272,7.11227855,172.87,172.67,393.15463536]
[1729735311273,7.11227855,172.85,172.8,1.2743]
[1729735312180,7.11227855,172.85,172.84,2.8953]
[1729735312372,4.8,172.87,172.84,2.8953]
[1729735312573,4.8,172.87,172.8,12.39605474]
[1729735312877,4.8,172.87,172.86,2.8949]
[1729735320480,2.86438729,172.98,172.82,11.12175474]
[1729735320684,4.8,172.97,172.86,11.12175474]
[1729735320878,2.2676,172.99,172.86,11.12175474]
[1729735320879,4.8,172.96,172.88,11.12175474]
[1729735321081,4.8,172.96,172.95,2.8934]
[1729735321378,2.2676,172.99,172.95,2.8934]
[1729735321683,4.8,172.98,172.91,11.12175474]
[1729735321881,4.8,172.98,172.93,2.8937]
[1729735322279,1.1952,172.99,172.91,11.12175474]
[1729735322584,4.8,172.98,172.91,11.12175474]
[1729735323082,4.8,172.98,172.93,11.12175474]
[1729735323482,4.8,172.98,172.97,2.8931]
[1729735324082,2.8919,173.04,172.99,2.8927]
[1729735324278,4.8,173.03,172.99,2.8927]
[1729735325884,4.8,173.03,173.0,2.8926]
[1729735326181,4.8,173.03,172.93,11.12175474]
[1729735326774,4.8,173.03,172.96,2.8932]
[1729735327081,15.92175474,173.03,172.91,11.12175474]
[1729735327474,2.8924,173.01,172.96,2.8931]
[1729735327679,14.01415474,173.01,172.96,2.8931]
[1729735327879,14.01415474,173.01,172.91,11.12175474]
[1729735328487,14.01465474,172.99,172.89,12.56877204]
[1729735328786,4.8,172.98,172.91,11.12175474]
[1729735328987,4.8,172.97,172.91,11.12175474]
[1729735329190,4.8,172.97,172.95,2.8933]
[1729735331782,4.8,172.97,172.92,2.8939]
[1729735332087,15.92175474,172.97,172.88,2.73618914]
[1729735332277,11.12175474,173.02,172.97,2.8931]
[1729735332484,4.8,173.01,172.97,2.8931]
[1729735332879,11.12175474,172.99,172.89,12.56894388]
[1729735333081,11.12175474,172.99,172.94,2.8935]
[1729735333283,11.12175474,172.99,172.89,12.56894388]
[1729735333485,14.01455474,172.99,172.89,12.56894388]
[1729735333689,14.01455474,172.99,172.94,2.8934]
[1729735333883,11.12175474,172.99,172.89,12.56894388]
[1729735334086,11.12175474,172.97,172.88,1.289]
[1729735334390,4.8,172.96,172.91,2.8939]
[1729735334794,2.8935,172.95,172.91,2.8939]
[1729735335597,2.8935,172.95,172.84,154.78533342]